[Event "*** Titled Tuesday Blitz"]
[Site "Chess.com"]
[Date "2020.05.12"]
[Round "8"]
[White "ljuks68"]
[Black "bazar-wokzal"]
[Result "1-0"]
[WhiteElo "2408"]
[BlackElo "2540"]
[TimeControl "180+1"]
[EndTime "11:33:10 PDT"]
[Termination "ljuks68 won by resignation"]

1. e4 {[%clk 0:02:45.5]} 1... Nc6 {[%clk 0:02:28.8]} 2. Nf3 {[%clk 0:02:42.7]}
2... d5 {[%clk 0:02:28.4]} 3. exd5 {[%clk 0:02:42.6]} 3... Qxd5 {[%clk
0:02:27.6]} 4. Nc3 {[%clk 0:02:43.1]} 4... Qa5 {[%clk 0:02:27.3]} 5. d4 {[%clk
0:02:35.1]} 5... Bg4 {[%clk 0:02:26.8]} 6. d5 {[%clk 0:02:33.2]} 6... O-O-O
{[%clk 0:02:26.5]} 7. Bd2 {[%clk 0:02:30.8]} 7... Nb4 {[%clk 0:02:26.4]} 8. Bc4
{[%clk 0:02:18.3]} 8... Bxf3 {[%clk 0:02:25.6]} 9. gxf3 {[%clk 0:02:17.8]} 9...
Nf6 {[%clk 0:02:25.1]} 10. a3 {[%clk 0:02:13.9]} 10... Qc5 {[%clk 0:02:24.6]}
11. axb4 {[%clk 0:02:05.8]} 11... Qxc4 {[%clk 0:02:24.8]} 12. Rxa7 {[%clk
0:01:43.2]} 12... Nxd5 {[%clk 0:02:24.1]} 13. Ra8+ {[%clk 0:01:39.3]} 13... Kd7
{[%clk 0:02:23.5]} 14. Rxd8+ {[%clk 0:01:39]} 14... Kxd8 {[%clk 0:02:23.5]} 15.
Bg5 {[%clk 0:01:25.3]} 15... c6 {[%clk 0:02:18.2]} 16. Rg1 {[%clk 0:00:36]}
16... f6 {[%clk 0:02:14.9]} 17. Rg4 {[%clk 0:00:35.4]} 17... Qa6 {[%clk
0:01:49.3]} 18. b5 {[%clk 0:00:23.2]} 18... Qa5 {[%clk 0:01:26.2]} 19. Ra4
{[%clk 0:00:21.9]} 19... Qb6 {[%clk 0:01:05.4]} 20. Nxd5 {[%clk 0:00:21.9]}
20... cxd5 {[%clk 0:01:04.7]} 21. Qxd5+ {[%clk 0:00:20.9]} 21... Kc7 {[%clk
0:00:56.1]} 22. Rc4+ {[%clk 0:00:16.2]} 22... Kb8 {[%clk 0:00:55.9]} 23. Be3
{[%clk 0:00:15.2]} 23... Qa5+ {[%clk 0:00:52.6]} 24. c3 {[%clk 0:00:14.4]} 24...
e5 {[%clk 0:00:48.7]} 25. Qd7 {[%clk 0:00:13.4]} 25... Qa1+ {[%clk 0:00:40.4]}
26. Ke2 {[%clk 0:00:13.3]} 26... Qxb2+ {[%clk 0:00:40.4]} 27. Kf1 {[%clk
0:00:13.3]} 27... Qb1+ {[%clk 0:00:35.7]} 28. Kg2 {[%clk 0:00:13.1]} 28... Qg6+
{[%clk 0:00:35.3]} 29. Rg4 {[%clk 0:00:11.7]} 29... Ba3 {[%clk 0:00:27.6]} 30.
Rxg6 {[%clk 0:00:10.7]} 30... hxg6 {[%clk 0:00:27.9]} 31. b6 {[%clk 0:00:10.4]}
31... Rc8 {[%clk 0:00:27.3]} 32. Qa4 {[%clk 0:00:10.1]} 32... Rxc3 {[%clk
0:00:26.9]} 33. Qa7+ {[%clk 0:00:09.2]} 33... Kc8 {[%clk 0:00:27.1]} 34. Qa8+
{[%clk 0:00:09.6]} 34... Kd7 {[%clk 0:00:27.6]} 35. Qxb7+ {[%clk 0:00:10.1]}
35... Ke6 {[%clk 0:00:27.9]} 36. Qa7 {[%clk 0:00:09.7]} 36... Bd6 {[%clk
0:00:26.7]} 37. b7 {[%clk 0:00:09.1]} 37... Kf5 {[%clk 0:00:26.2]} 38. b8=Q
{[%clk 0:00:08.8]} 38... Bxb8 {[%clk 0:00:26]} 39. Qxb8 {[%clk 0:00:09.2]} 39...
g5 {[%clk 0:00:26.3]} 40. Qb4 {[%clk 0:00:09.4]} 40... Rxe3 {[%clk 0:00:22.9]}
41. fxe3 {[%clk 0:00:08.9]} 41... Kg6 {[%clk 0:00:22.8]} 42. e4 {[%clk
0:00:08.7]} 42... Kf7 {[%clk 0:00:22.6]} 43. Qd6 {[%clk 0:00:09.1]} 43... Kg6
{[%clk 0:00:22.5]} 44. h3 {[%clk 0:00:09.7]} 44... Kf7 {[%clk 0:00:21.9]} 45.
Qd7+ {[%clk 0:00:10.1]} 45... Kg6 {[%clk 0:00:21.8]} 46. Qf5+ {[%clk 0:00:10.6]}
1-0

[Event "*** Titled Tuesday Blitz"]
[Site "Chess.com"]
[Date "2020.05.12"]
[Round "8"]
[White "Gentlejimmy7"]
[Black "chenrip"]
[Result "1-0"]
[WhiteElo "2552"]
[BlackElo "2331"]
[TimeControl "180+1"]
[EndTime "11:33:11 PDT"]
[Termination "Gentlejimmy7 won by resignation"]

1. d4 {[%clk 0:02:27.9]} 1... Nf6 {[%clk 0:02:57]} 2. g3 {[%clk 0:02:28.8]} 2...
e6 {[%clk 0:02:56.3]} 3. Bg2 {[%clk 0:02:29.7]} 3... Be7 {[%clk 0:02:56.5]} 4.
Nf3 {[%clk 0:02:30.6]} 4... O-O {[%clk 0:02:56.8]} 5. O-O {[%clk 0:02:31.5]}
5... b5 {[%clk 0:02:56.7]} 6. a4 {[%clk 0:02:31.1]} 6... b4 {[%clk 0:02:56.4]}
7. a5 {[%clk 0:02:31.1]} 7... a6 {[%clk 0:02:53.3]} 8. Qd3 {[%clk 0:02:26]} 8...
Bb7 {[%clk 0:02:52.7]} 9. Bg5 {[%clk 0:02:26.3]} 9... d6 {[%clk 0:02:48.7]} 10.
Bxf6 {[%clk 0:02:26.6]} 10... Bxf6 {[%clk 0:02:48.4]} 11. Ng5 {[%clk 0:02:27.5]}
11... Bxg5 {[%clk 0:02:46.7]} 12. Bxb7 {[%clk 0:02:28.4]} 12... Ra7 {[%clk
0:02:46.3]} 13. Be4 {[%clk 0:02:28.9]} 13... h6 {[%clk 0:02:45.6]} 14. Nd2
{[%clk 0:02:28.4]} 14... f5 {[%clk 0:02:38.9]} 15. Bg2 {[%clk 0:02:27.8]} 15...
Nd7 {[%clk 0:02:33.8]} 16. e4 {[%clk 0:02:27.8]} 16... f4 {[%clk 0:02:32.5]} 17.
Nf3 {[%clk 0:02:23.5]} 17... Kh8 {[%clk 0:02:25.3]} 18. Nxg5 {[%clk 0:02:22.2]}
18... Qxg5 {[%clk 0:02:23.6]} 19. Qc4 {[%clk 0:02:19.7]} 19... e5 {[%clk
0:02:11.4]} 20. Qe6 {[%clk 0:02:11.2]} 20... Nf6 {[%clk 0:02:00.4]} 21. dxe5
{[%clk 0:02:10.5]} 21... Qxe5 {[%clk 0:01:50.3]} 22. Qxe5 {[%clk 0:02:07.4]}
22... dxe5 {[%clk 0:01:50.4]} 23. Rfd1 {[%clk 0:02:08.3]} 23... c5 {[%clk
0:01:49.2]} 24. Rd6 {[%clk 0:02:06.5]} 24... c4 {[%clk 0:01:42.3]} 25. gxf4
{[%clk 0:01:58.7]} 25... exf4 {[%clk 0:01:41.9]} 26. e5 {[%clk 0:01:59.3]} 26...
Ng4 {[%clk 0:01:39.7]} 27. e6 {[%clk 0:01:59.8]} 27... Re8 {[%clk 0:00:55.5]}
28. Re1 {[%clk 0:01:58.5]} 28... Nf6 {[%clk 0:00:46.1]} 29. Bc6 {[%clk
0:01:56.9]} 29... Ree7 {[%clk 0:00:45.2]} 30. Ba4 {[%clk 0:01:51.6]} 30... c3
{[%clk 0:00:42.2]} 31. bxc3 {[%clk 0:01:50.6]} 31... bxc3 {[%clk 0:00:42.4]} 32.
Re5 {[%clk 0:01:50.9]} 32... Kh7 {[%clk 0:00:39.1]} 33. Kg2 {[%clk 0:01:51.2]}
33... g5 {[%clk 0:00:38.4]} 34. Rc5 {[%clk 0:01:42.4]} 34... Kg6 {[%clk
0:00:37.7]} 35. Rxc3 {[%clk 0:01:42]} 35... Ne4 {[%clk 0:00:36.5]} 36. Rcc6
{[%clk 0:01:38.7]} 36... Nxd6 {[%clk 0:00:36.2]} 37. Rxd6 {[%clk 0:01:39.6]}
37... Kf6 {[%clk 0:00:36.4]} 38. Bb3 {[%clk 0:01:38.7]} 38... g4 {[%clk
0:00:36.4]} 39. h3 {[%clk 0:01:38.8]} 39... h5 {[%clk 0:00:36.2]} 40. hxg4
{[%clk 0:01:38]} 40... hxg4 {[%clk 0:00:36.2]} 41. Rd8 {[%clk 0:01:35.3]} 41...
Rh7 {[%clk 0:00:33.5]} 42. Rf8+ {[%clk 0:01:34.7]} 42... Ke5 {[%clk 0:00:33.7]}
43. Rf7 {[%clk 0:01:19.1]} 43... Rhxf7 {[%clk 0:00:16.5]} 44. exf7 {[%clk
0:01:20]} 44... Ra8 {[%clk 0:00:16.8]} 45. Kf1 {[%clk 0:01:18.5]} 45... Rf8
{[%clk 0:00:13.2]} 46. Ke2 {[%clk 0:01:18.9]} 46... Kd4 {[%clk 0:00:13.7]} 47.
Kd2 {[%clk 0:01:18.9]} 47... Kc5 {[%clk 0:00:13.7]} 48. Kd3 {[%clk 0:01:17.9]}
48... Kb5 {[%clk 0:00:14]} 49. Ke4 {[%clk 0:01:18.2]} 49... Kxa5 {[%clk
0:00:14.2]} 50. Kxf4 {[%clk 0:01:18.4]} 50... Kb4 {[%clk 0:00:14.7]} 51. Kg5
{[%clk 0:01:16]} 51... a5 {[%clk 0:00:14.1]} 52. Kf6 {[%clk 0:01:16.5]} 52... a4
{[%clk 0:00:14.3]} 53. Bxa4 {[%clk 0:00:55.9]} 53... Kxa4 {[%clk 0:00:11.5]} 54.
Ke7 {[%clk 0:00:56.4]} 54... Rb8 {[%clk 0:00:10.1]} 55. f8=Q {[%clk 0:00:56.6]}
55... Rxf8 {[%clk 0:00:10.7]} 56. Kxf8 {[%clk 0:00:57.5]} 56... Kb4 {[%clk
0:00:11.3]} 57. Kg7 {[%clk 0:00:58.2]} 57... Kc3 {[%clk 0:00:11.7]} 58. Kg6
{[%clk 0:00:59.1]} 58... Kxc2 {[%clk 0:00:10.9]} 59. Kg5 {[%clk 0:00:59.5]}
59... Kd3 {[%clk 0:00:11.8]} 60. Kxg4 {[%clk 0:00:59.4]} 60... Ke4 {[%clk
0:00:12.7]} 61. f4 {[%clk 0:00:59]} 61... Kd5 {[%clk 0:00:12.6]} 62. Kh5 {[%clk
0:00:58.1]} 62... Ke6 {[%clk 0:00:13.5]} 63. Kg6 {[%clk 0:00:58.1]} 63... Ke7
{[%clk 0:00:14.4]} 64. f5 {[%clk 0:00:56.8]} 64... Ke8 {[%clk 0:00:14.6]} 65.
Kg7 {[%clk 0:00:57]} 1-0

[Event "*** Titled Tuesday Blitz"]
[Site "Chess.com"]
[Date "2020.05.12"]
[Round "8"]
[White "zmeeed67"]
[Black "GoValya"]
[Result "1-0"]
[WhiteElo "2406"]
[BlackElo "2173"]
[TimeControl "180+1"]
[EndTime "11:33:11 PDT"]
[Termination "zmeeed67 won by resignation"]

1. d4 {[%clk 0:02:58.9]} 1... Nf6 {[%clk 0:02:59.3]} 2. c4 {[%clk 0:02:58.2]}
2... e6 {[%clk 0:02:59.5]} 3. Nc3 {[%clk 0:02:57.9]} 3... d5 {[%clk 0:02:58.8]}
4. cxd5 {[%clk 0:02:57.7]} 4... exd5 {[%clk 0:02:58.3]} 5. Bg5 {[%clk
0:02:57.9]} 5... Be7 {[%clk 0:02:43.8]} 6. e3 {[%clk 0:02:58.2]} 6... O-O {[%clk
0:02:42.9]} 7. Bd3 {[%clk 0:02:58]} 7... h6 {[%clk 0:02:41.6]} 8. Bh4 {[%clk
0:02:57.8]} 8... c6 {[%clk 0:02:39.5]} 9. f3 {[%clk 0:02:57.1]} 9... Nbd7 {[%clk
0:02:39]} 10. Bf2 {[%clk 0:02:56.8]} 10... b5 {[%clk 0:02:36.8]} 11. Rc1 {[%clk
0:02:55.4]} 11... Bb7 {[%clk 0:02:31.6]} 12. Nh3 {[%clk 0:02:54.8]} 12... Rc8
{[%clk 0:02:30]} 13. O-O {[%clk 0:02:54.7]} 13... b4 {[%clk 0:02:25.4]} 14. Ne2
{[%clk 0:02:52.3]} 14... c5 {[%clk 0:02:23.9]} 15. Bb1 {[%clk 0:02:51.4]} 15...
Ba6 {[%clk 0:02:11.3]} 16. Re1 {[%clk 0:02:48.3]} 16... Nb6 {[%clk 0:02:00]} 17.
g4 {[%clk 0:02:36.3]} 17... Nc4 {[%clk 0:01:53]} 18. b3 {[%clk 0:02:35.1]} 18...
Na3 {[%clk 0:01:53]} 19. Bf5 {[%clk 0:02:28.9]} 19... Rc7 {[%clk 0:01:44.8]} 20.
Nhf4 {[%clk 0:02:22.6]} 20... c4 {[%clk 0:01:34.2]} 21. bxc4 {[%clk 0:02:12.8]}
21... dxc4 {[%clk 0:01:29.8]} 22. e4 {[%clk 0:02:01.2]} 22... c3 {[%clk
0:01:27.3]} 23. d5 {[%clk 0:01:52.5]} 23... Nc4 {[%clk 0:01:15.1]} 24. Nd4
{[%clk 0:01:31.9]} 24... Ne5 {[%clk 0:01:07.4]} 25. h4 {[%clk 0:01:08.6]} 25...
g5 {[%clk 0:00:58.3]} 26. hxg5 {[%clk 0:01:07.4]} 26... hxg5 {[%clk 0:00:58.6]}
27. Nfe6 {[%clk 0:01:00.1]} 27... fxe6 {[%clk 0:00:52]} 28. Nxe6 {[%clk
0:01:01]} 28... Qd6 {[%clk 0:00:49.5]} 29. Bg3 {[%clk 0:00:35.3]} 29... Nfd7
{[%clk 0:00:40.7]} 30. Kg2 {[%clk 0:00:30.8]} 30... Qb6 {[%clk 0:00:31.4]} 31.
Nxc7 {[%clk 0:00:27.9]} 31... Qxc7 {[%clk 0:00:30.9]} 32. Rh1 {[%clk 0:00:23.9]}
32... Rf7 {[%clk 0:00:28.6]} 33. Be6 {[%clk 0:00:23.7]} 33... Bd6 {[%clk
0:00:26]} 34. Rh5 {[%clk 0:00:14.1]} 34... Qd8 {[%clk 0:00:23.5]} 35. Qh1 {[%clk
0:00:12]} 35... Ng6 {[%clk 0:00:21.1]} 36. Bxd6 {[%clk 0:00:09.8]} 36... Nf6
{[%clk 0:00:16.2]} 37. Bxf7+ {[%clk 0:00:06.3]} 37... Kxf7 {[%clk 0:00:16.3]}
38. Rh7+ {[%clk 0:00:07.2]} 38... Nxh7 {[%clk 0:00:16.4]} 39. Qxh7+ {[%clk
0:00:08.1]} 39... Kf6 {[%clk 0:00:16.7]} 40. e5+ {[%clk 0:00:06.7]} 40... Nxe5
{[%clk 0:00:16.6]} 41. Qf5+ {[%clk 0:00:07]} 41... Kg7 {[%clk 0:00:15.5]} 42.
Bxe5+ {[%clk 0:00:07.8]} 42... Kg8 {[%clk 0:00:15.1]} 43. Qg6+ {[%clk
0:00:07.2]} 43... Kf8 {[%clk 0:00:15.3]} 44. Bd6+ {[%clk 0:00:07.5]} 1-0

[Event "*** Titled Tuesday Blitz"]
[Site "Chess.com"]
[Date "2020.05.12"]
[Round "8"]
[White "Philos_85"]
[Black "Vamostodorecto"]
[Result "1-0"]
[WhiteElo "2309"]
[BlackElo "2442"]
[TimeControl "180+1"]
[EndTime "11:33:16 PDT"]
[Termination "Philos_85 won by resignation"]

1. d4 {[%clk 0:03:00.9]} 1... Nf6 {[%clk 0:02:59]} 2. Nf3 {[%clk 0:03:00.5]}
2... g6 {[%clk 0:02:59.3]} 3. Bg5 {[%clk 0:03:00.2]} 3... Bg7 {[%clk 0:02:59.5]}
4. Nbd2 {[%clk 0:03:00.8]} 4... O-O {[%clk 0:02:59.9]} 5. c3 {[%clk 0:03:01]}
5... d5 {[%clk 0:03:00]} 6. e3 {[%clk 0:03:01.1]} 6... c5 {[%clk 0:03:00]} 7.
Be2 {[%clk 0:03:01.2]} 7... b6 {[%clk 0:02:58.8]} 8. O-O {[%clk 0:03:01.3]} 8...
Bb7 {[%clk 0:02:58.9]} 9. b4 {[%clk 0:02:41.2]} 9... cxb4 {[%clk 0:02:54.5]} 10.
cxb4 {[%clk 0:02:40.7]} 10... Ne4 {[%clk 0:02:55]} 11. Nxe4 {[%clk 0:02:36.6]}
11... dxe4 {[%clk 0:02:55.9]} 12. Nd2 {[%clk 0:02:37.2]} 12... Nd7 {[%clk
0:02:40.3]} 13. Qb3 {[%clk 0:02:31.7]} 13... h6 {[%clk 0:02:32.6]} 14. Bh4
{[%clk 0:02:30.8]} 14... g5 {[%clk 0:02:31.2]} 15. Bg3 {[%clk 0:02:30.7]} 15...
e5 {[%clk 0:02:31.6]} 16. dxe5 {[%clk 0:02:30.7]} 16... Nxe5 {[%clk 0:02:32.5]}
17. Rad1 {[%clk 0:02:30.6]} 17... Qe7 {[%clk 0:02:25.8]} 18. Nc4 {[%clk
0:02:25.9]} 18... Nd3 {[%clk 0:02:02.8]} 19. Bd6 {[%clk 0:02:15]} 19... Qe6
{[%clk 0:01:56.9]} 20. Bxf8 {[%clk 0:02:14.6]} 20... Rxf8 {[%clk 0:01:56.2]} 21.
Nd2 {[%clk 0:01:44.9]} 21... Bd5 {[%clk 0:01:53.4]} 22. Qa3 {[%clk 0:01:31.2]}
22... f5 {[%clk 0:01:45.6]} 23. Bxd3 {[%clk 0:01:23.5]} 23... exd3 {[%clk
0:01:46.5]} 24. Qxd3 {[%clk 0:01:23.7]} 24... f4 {[%clk 0:01:23.2]} 25. exf4
{[%clk 0:01:20.2]} 25... Rxf4 {[%clk 0:01:22.8]} 26. Nb3 {[%clk 0:01:07.6]}
26... Be4 {[%clk 0:00:38]} 27. Qd8+ {[%clk 0:01:03]} 27... Kh7 {[%clk
0:00:37.4]} 28. Nd4 {[%clk 0:00:58.3]} 28... Qg4 {[%clk 0:00:32]} 29. f3 {[%clk
0:00:35.2]} 29... Bxd4+ {[%clk 0:00:22]} 30. Qxd4 {[%clk 0:00:34.3]} 30... Bxf3
{[%clk 0:00:17.3]} 31. Qd7+ {[%clk 0:00:31.1]} 31... Kg6 {[%clk 0:00:17.2]} 32.
Qxg4 {[%clk 0:00:30.1]} 32... Bxg4 {[%clk 0:00:18.1]} 33. Rxf4 {[%clk
0:00:30.3]} 33... Bxd1 {[%clk 0:00:17.3]} 34. Rd4 {[%clk 0:00:27.5]} 34... Ba4
{[%clk 0:00:16]} 35. Kf2 {[%clk 0:00:26.3]} 35... Bb5 {[%clk 0:00:15.7]} 36. Ke3
{[%clk 0:00:25.8]} 36... Kf5 {[%clk 0:00:15.5]} 37. Rd6 {[%clk 0:00:25.1]} 37...
h5 {[%clk 0:00:14.8]} 38. Rh6 {[%clk 0:00:24.8]} 38... h4 {[%clk 0:00:14.6]} 39.
Rh7 {[%clk 0:00:24.5]} 39... Bc6 {[%clk 0:00:13.2]} 40. Kf2 {[%clk 0:00:22.9]}
40... a6 {[%clk 0:00:12.2]} 41. Rh6 {[%clk 0:00:22]} 41... Bd5 {[%clk
0:00:10.6]} 42. Rxb6 {[%clk 0:00:20.9]} 42... Bc4 {[%clk 0:00:10.6]} 43. a4
{[%clk 0:00:20.1]} 43... g4 {[%clk 0:00:09.7]} 44. b5 {[%clk 0:00:20.1]} 44...
Kf4 {[%clk 0:00:10.2]} 45. bxa6 {[%clk 0:00:19.6]} 45... g3+ {[%clk 0:00:10.6]}
46. hxg3+ {[%clk 0:00:19.9]} 46... hxg3+ {[%clk 0:00:11.1]} 47. Kg1 {[%clk
0:00:20.1]} 1-0

[Event "*** Titled Tuesday Blitz"]
[Site "Chess.com"]
[Date "2020.05.12"]
[Round "8"]
[White "FMalexhdez"]
[Black "AndriiTop"]
[Result "1-0"]
[WhiteElo "2066"]
[BlackElo "2324"]
[TimeControl "180+1"]
[EndTime "11:33:17 PDT"]
[Termination "FMalexhdez won on time"]

1. e4 {[%clk 0:03:00.9]} 1... c6 {[%clk 0:02:59.2]} 2. d4 {[%clk 0:02:59.8]}
2... d5 {[%clk 0:02:59.6]} 3. exd5 {[%clk 0:03:00.3]} 3... cxd5 {[%clk 0:03:00]}
4. Bd3 {[%clk 0:03:00.9]} 4... Nf6 {[%clk 0:03:00.2]} 5. c3 {[%clk 0:02:57.9]}
5... Nc6 {[%clk 0:02:59.4]} 6. Bg5 {[%clk 0:02:57.4]} 6... g6 {[%clk 0:02:59.2]}
7. Nd2 {[%clk 0:02:54.3]} 7... Bg7 {[%clk 0:02:58.7]} 8. Ngf3 {[%clk 0:02:53.1]}
8... O-O {[%clk 0:02:55.7]} 9. O-O {[%clk 0:02:53.8]} 9... Bf5 {[%clk
0:02:54.7]} 10. Qc2 {[%clk 0:02:37.6]} 10... e6 {[%clk 0:02:50.4]} 11. Rfe1
{[%clk 0:02:31.7]} 11... Rc8 {[%clk 0:02:48.8]} 12. Bxf5 {[%clk 0:02:31.6]}
12... gxf5 {[%clk 0:02:45]} 13. Qd3 {[%clk 0:02:30.9]} 13... Qb6 {[%clk
0:02:42.7]} 14. Bxf6 {[%clk 0:02:29.1]} 14... Bxf6 {[%clk 0:02:40.7]} 15. b4
{[%clk 0:02:21.8]} 15... Kh8 {[%clk 0:02:25]} 16. a4 {[%clk 0:02:18.3]} 16... a5
{[%clk 0:02:23.5]} 17. b5 {[%clk 0:02:18.1]} 17... Ne7 {[%clk 0:02:21.6]} 18.
Ne5 {[%clk 0:02:13.4]} 18... Qc7 {[%clk 0:02:18.7]} 19. Rac1 {[%clk 0:02:08.7]}
19... Ng6 {[%clk 0:02:14.9]} 20. Nxg6+ {[%clk 0:01:42.7]} 20... hxg6 {[%clk
0:02:15.8]} 21. c4 {[%clk 0:01:39.8]} 21... dxc4 {[%clk 0:02:11.5]} 22. Rxc4
{[%clk 0:01:34.5]} 22... Qd7 {[%clk 0:02:10.9]} 23. Rec1 {[%clk 0:01:33]} 23...
Kg7 {[%clk 0:02:06.9]} 24. Nf3 {[%clk 0:01:31.7]} 24... Rxc4 {[%clk 0:02:05.7]}
25. Qxc4 {[%clk 0:01:30.9]} 25... Qd6 {[%clk 0:02:02.7]} 26. Qc7 {[%clk
0:01:25]} 26... Qa3 {[%clk 0:01:57.3]} 27. h4 {[%clk 0:01:14.2]} 27... Qxa4
{[%clk 0:01:52.6]} 28. Qxb7 {[%clk 0:01:13.8]} 28... Qb4 {[%clk 0:01:40.1]} 29.
b6 {[%clk 0:00:56.1]} 29... Bxd4 {[%clk 0:01:28.6]} 30. Nxd4 {[%clk 0:00:53.7]}
30... Qxd4 {[%clk 0:01:29.5]} 31. g3 {[%clk 0:00:51.7]} 31... a4 {[%clk
0:01:25.2]} 32. Qa6 {[%clk 0:00:39.4]} 32... Rb8 {[%clk 0:01:19.2]} 33. b7
{[%clk 0:00:37.2]} 33... Qb2 {[%clk 0:01:14.1]} 34. Rc7 {[%clk 0:00:29.7]} 34...
a3 {[%clk 0:01:11.9]} 35. Qxe6 {[%clk 0:00:27.9]} 35... Rf8 {[%clk 0:00:36.5]}
36. b8=Q {[%clk 0:00:16.5]} 36... Qxb8 {[%clk 0:00:32]} 37. Qe5+ {[%clk
0:00:14.8]} 37... Kg8 {[%clk 0:00:30.7]} 38. Qa5 {[%clk 0:00:07.9]} 38... a2
{[%clk 0:00:25]} 39. Ra7 {[%clk 0:00:07.2]} 39... Qb1+ {[%clk 0:00:16.6]} 40.
Kg2 {[%clk 0:00:07]} 40... Re8 {[%clk 0:00:13.4]} 41. Qxa2 {[%clk 0:00:05.3]}
41... Qe4+ {[%clk 0:00:14.3]} 42. Kh2 {[%clk 0:00:04.1]} 1-0

[Event "*** Titled Tuesday Blitz"]
[Site "Chess.com"]
[Date "2020.05.12"]
[Round "8"]
[White "kingofthenil"]
[Black "relaxx87"]
[Result "0-1"]
[WhiteElo "2465"]
[BlackElo "2673"]
[TimeControl "180+1"]
[EndTime "11:33:20 PDT"]
[Termination "relaxx87 won by resignation"]

1. e4 {[%clk 0:03:00.9]} 1... c5 {[%clk 0:02:57.3]} 2. d3 {[%clk 0:03:00.8]}
2... Nc6 {[%clk 0:02:55.8]} 3. g3 {[%clk 0:03:01.3]} 3... g6 {[%clk 0:02:54.8]}
4. Bg2 {[%clk 0:03:00.2]} 4... Bg7 {[%clk 0:02:54.6]} 5. f4 {[%clk 0:03:01.1]}
5... d6 {[%clk 0:02:54.1]} 6. Nf3 {[%clk 0:03:02]} 6... Nf6 {[%clk 0:02:52.8]}
7. O-O {[%clk 0:03:02.9]} 7... O-O {[%clk 0:02:53.1]} 8. Nc3 {[%clk 0:03:02.6]}
8... Rb8 {[%clk 0:02:50.4]} 9. h3 {[%clk 0:03:00.6]} 9... b5 {[%clk 0:02:47.5]}
10. g4 {[%clk 0:03:00.7]} 10... b4 {[%clk 0:02:46.8]} 11. Ne2 {[%clk 0:02:56.2]}
11... Ba6 {[%clk 0:02:46.5]} 12. Kh1 {[%clk 0:02:54]} 12... c4 {[%clk
0:02:46.4]} 13. Be3 {[%clk 0:02:52]} 13... cxd3 {[%clk 0:02:41.5]} 14. cxd3
{[%clk 0:02:52.9]} 14... Nd7 {[%clk 0:02:35.9]} 15. Rc1 {[%clk 0:02:48.2]} 15...
Nc5 {[%clk 0:02:08.6]} 16. d4 {[%clk 0:02:46.1]} 16... Nxe4 {[%clk 0:02:06.2]}
17. Kh2 {[%clk 0:02:21.3]} 17... Na5 {[%clk 0:01:53.3]} 18. Nd2 {[%clk
0:02:14.7]} 18... Nxd2 {[%clk 0:01:50.9]} 19. Qxd2 {[%clk 0:02:14.2]} 19... Nc4
{[%clk 0:01:50.6]} 20. Qd3 {[%clk 0:02:13.3]} 20... Nxe3 {[%clk 0:01:46.3]} 21.
Qxe3 {[%clk 0:02:10.4]} 21... e6 {[%clk 0:01:30.6]} 22. Rc6 {[%clk 0:02:01.4]}
22... Bb5 {[%clk 0:01:26.8]} 23. Rc2 {[%clk 0:02:00.1]} 23... Rc8 {[%clk
0:01:20.3]} 24. Rfc1 {[%clk 0:01:59.7]} 24... Qd7 {[%clk 0:01:20]} 25. Ng3
{[%clk 0:01:36.6]} 25... Rxc2 {[%clk 0:00:50.2]} 26. Rxc2 {[%clk 0:01:37.5]}
26... d5 {[%clk 0:00:50.6]} 27. Bf1 {[%clk 0:01:25.6]} 27... Bxf1 {[%clk
0:00:48.2]} 28. Nxf1 {[%clk 0:01:26.5]} 28... Rc8 {[%clk 0:00:48.1]} 29. Rxc8+
{[%clk 0:00:55]} 29... Qxc8 {[%clk 0:00:49]} 30. Qd2 {[%clk 0:00:50.5]} 30...
Qc4 {[%clk 0:00:47.5]} 31. Ne3 {[%clk 0:00:49.5]} 31... Qxd4 {[%clk 0:00:45.4]}
32. Qxd4 {[%clk 0:00:50.1]} 32... Bxd4 {[%clk 0:00:45.8]} 33. Nc2 {[%clk
0:00:51]} 33... Bxb2 {[%clk 0:00:40]} 34. Nxb4 {[%clk 0:00:49.8]} 34... Bc3
{[%clk 0:00:35]} 35. Nd3 {[%clk 0:00:50.7]} 35... f6 {[%clk 0:00:32.8]} 36. Kg3
{[%clk 0:00:51]} 36... Kf7 {[%clk 0:00:32.2]} 37. Kf3 {[%clk 0:00:50]} 37... e5
{[%clk 0:00:32.4]} 38. fxe5 {[%clk 0:00:50.9]} 38... fxe5 {[%clk 0:00:32.8]} 39.
Nc5 {[%clk 0:00:48.5]} 39... Ke7 {[%clk 0:00:29.1]} 40. h4 {[%clk 0:00:47.4]}
40... Kd6 {[%clk 0:00:28.3]} 41. Nb3 {[%clk 0:00:47.5]} 41... e4+ {[%clk
0:00:19.9]} 42. Kf4 {[%clk 0:00:45.9]} 42... Be5+ {[%clk 0:00:20.4]} 43. Ke3
{[%clk 0:00:46.1]} 43... h6 {[%clk 0:00:18.6]} 44. h5 {[%clk 0:00:45.4]} 44...
gxh5 {[%clk 0:00:18.6]} 45. gxh5 {[%clk 0:00:46.3]} 45... Bf6 {[%clk 0:00:19.1]}
46. a4 {[%clk 0:00:46]} 46... Bg5+ {[%clk 0:00:19.6]} 47. Kd4 {[%clk 0:00:46.2]}
47... Bf6+ {[%clk 0:00:19.1]} 48. Ke3 {[%clk 0:00:46.2]} 48... Ke5 {[%clk
0:00:20]} 49. Na5 {[%clk 0:00:41.3]} 49... d4+ {[%clk 0:00:20.1]} 50. Ke2 {[%clk
0:00:42.2]} 50... Kd5 {[%clk 0:00:20]} 51. Nb3 {[%clk 0:00:40.6]} 51... d3+
{[%clk 0:00:20.3]} 52. Kd1 {[%clk 0:00:40.6]} 52... Bg5 {[%clk 0:00:20.4]} 53.
Na5 {[%clk 0:00:34.2]} 53... e3 {[%clk 0:00:20.4]} 54. Nb3 {[%clk 0:00:33.2]}
54... e2+ {[%clk 0:00:20.6]} 55. Ke1 {[%clk 0:00:31.1]} 55... Bh4+ {[%clk
0:00:20.8]} 56. Kd2 {[%clk 0:00:30.7]} 56... e1=Q+ {[%clk 0:00:21.7]} 57. Kxd3
{[%clk 0:00:31.3]} 57... Qe4+ {[%clk 0:00:21.8]} 58. Kc3 {[%clk 0:00:30.5]}
58... Qxa4 {[%clk 0:00:21.3]} 59. Kb2 {[%clk 0:00:31.4]} 0-1